bitfinex/quotes_SOLUSD_20241226
["timestamp","ask_amount","ask_price","bid_price","bid_amount"]
[1735180582486,13.75450888,198.27,198.2,13.75450888]
[1735180582688,13.75450888,198.27,198.19,23.776884]
[1735180582878,13.75450888,198.25,198.16,21.72100888]
[1735180583197,13.75450888,198.23,198.16,7.9665]
[1735180583888,13.75450888,198.21,198.16,7.9665]
[1735180584086,13.75450888,198.19,198.12,15.40540888]
[1735180584289,13.75450888,198.17,198.12,1.6509]
[1735180584598,13.75450888,198.14,198.07,15.40540888]
[1735180584787,13.75450888,198.14,198.07,1.6509]
[1735180585396,13.75450888,198.15,198.08,13.75450888]
[1735180585615,13.75450888,198.16,198.09,13.75450888]
[1735180586373,13.75450888,198.18,198.11,13.75450888]
[1735180586578,13.75450888,198.19,198.11,13.75450888]
[1735180587002,13.75450888,198.13,198.07,1.6509]
[1735180587301,13.75450888,198.14,198.07,15.40540888]
[1735180587474,13.75450888,198.15,198.07,15.40540888]
[1735180588320,13.75450888,198.16,198.09,13.75450888]
[1735180588621,13.75450888,198.17,198.1,13.75450888]
[1735180588781,13.75450888,198.18,198.1,13.75450888]
[1735180589401,13.75450888,198.19,198.12,13.75450888]
[1735180589584,13.75450888,198.21,198.13,13.75450888]
[1735180589781,13.75450888,198.18,198.12,23.902374]
[1735180590675,13.75450888,198.18,198.11,23.902374]
[1735180591505,13.75450888,198.18,198.11,37.65688288]
[1735180591985,13.75450888,198.21,198.13,37.65688288]
[1735180592304,13.75450888,198.22,198.14,13.75450888]
[1735180592505,13.75450888,198.2,198.13,0.12549]
[1735180592706,13.75450888,198.19,198.13,0.12549]
[1735180593306,13.75450888,198.2,198.13,0.12549]
[1735180593883,13.75450888,198.21,198.13,13.87999888]
[1735180594083,13.75450888,198.2,198.13,0.12549]
[1735180594287,13.75450888,198.18,198.11,23.776884]
[1735180594599,13.75450888,198.17,198.12,0.12549]
[1735180595887,13.75450888,198.19,198.12,0.12549]
[1735180599114,13.75450888,198.19,198.11,37.53139288]
[1735180599288,13.75450888,198.17,198.09,13.75450888]
[1735180599495,13.75450888,198.15,198.07,15.40540888]
[1735180599794,13.75450888,198.13,198.07,1.6509]
[1735180601189,13.75450888,198.13,198.08,23.776884]
[1735180601723,13.75450888,198.17,198.1,23.776884]
[1735180602227,13.75450888,198.18,198.11,13.87999888]
[1735180602396,13.75450888,198.2,198.12,37.53139288]
[1735180603433,13.75450888,198.19,198.12,13.87999888]
[1735180603590,13.75450888,198.19,198.13,23.776884]
[1735180603916,13.75450888,198.21,198.14,0.12549]
[1735180604102,13.75450888,198.22,198.15,23.776884]
[1735180606120,13.75450888,198.22,198.15,37.53139288]
[1735180606303,13.75450888,198.22,198.15,13.75450888]
[1735180606617,13.75450888,198.22,198.16,23.776884]
[1735180606814,13.75450888,198.22,198.18,23.776884]
[1735180607216,13.75450888,198.24,198.18,23.776884]
[1735180609316,13.75450888,198.25,198.18,23.776884]
[1735180610790,13.75450888,198.22,198.17,1.5686]
[1735180612703,13.75450888,198.24,198.17,1.5686]
[1735180614513,13.75450888,198.22,198.17,1.5686]
[1735180618719,13.75450888,198.22,198.18,23.776884]
[1735180618917,13.75450888,198.24,198.18,23.776884]
[1735180619221,13.75450888,198.24,198.17,15.32310888]
[1735180619403,13.75450888,198.22,198.17,1.5686]
[1735180624239,13.75450888,198.24,198.18,23.776884]
[1735180624403,13.75450888,198.26,198.19,13.87999888]
[1735180624715,13.75450888,198.26,198.2,23.776884]
[1735180627723,13.75450888,198.28,198.2,37.53139288]
[1735180628229,13.75450888,198.27,198.2,23.776884]
[1735180628605,13.75450888,198.25,198.19,23.902374]
[1735180629628,13.75450888,198.25,198.18,23.776884]
[1735180630238,8.80650552,198.24,198.18,23.776884]
[1735180631401,8.80650552,198.22,198.17,1.5686]
[1735180631602,8.80650552,198.21,198.17,1.5686]
[1735180631931,8.80650552,198.2,198.15,6.4758]
[1735180632430,13.76463787,198.19,198.13,1.5338]
[1735180632631,13.76463787,198.18,198.13,1.5338]
[1735180633628,13.76463787,198.18,198.14,23.776884]
[1735180634930,13.76463787,198.19,198.14,23.776884]
[1735180635132,12.6092,198.27,198.15,13.89012787]
[1735180635133,13.76463787,198.22,198.15,13.89012787]
[1735180635429,13.76463787,198.23,198.16,13.76463787]
[1735180635634,13.76463787,198.23,198.17,23.776884]
[1735180635817,1.98216982,198.28,198.17,23.776884]
[1735180636021,13.76463787,198.25,198.17,37.54152187]
[1735180636323,13.76463787,198.25,198.19,23.776884]
[1735180636535,13.76463787,198.27,198.2,23.776884]
[1735180636824,13.76463787,198.3,198.24,23.776884]
[1735180638216,13.76463787,198.32,198.26,23.776884]
[1735180638422,13.76463787,198.33,198.26,23.776884]
[1735180639133,14.60009833,198.38,198.26,23.776884]
[1735180639134,13.76463787,198.32,198.26,23.776884]
[1735180640613,13.76463787,198.31,198.24,13.76463787]
[1735180640812,13.76463787,198.31,198.23,13.76463787]
[1735180641137,13.76463787,198.31,198.24,23.776884]
[1735180641514,13.76463787,198.33,198.25,37.54152187]
[1735180641713,13.76463787,198.31,198.25,23.776884]
[1735180642921,13.76463787,198.32,198.25,23.776884]
[1735180643317,13.76463787,198.34,198.27,37.54152187]
[1735180643522,13.76463787,198.35,198.28,13.76463787]
[1735180643727,13.76463787,198.35,198.29,23.776884]
[1735180644132,13.76463787,198.37,198.3,23.776884]
[1735180644335,13.76463787,198.37,198.3,37.54152187]
[1735180644638,13.76463787,198.36,198.29,23.902374]
[1735180646036,13.76463787,198.39,198.33,23.776884]
[1735180647036,13.76463787,198.42,198.35,23.776884]
[1735180648716,13.76463787,198.42,198.35,13.76463787]
[1735180649033,13.76463787,198.42,198.36,23.776884]
[1735180650519,13.76463787,198.4,198.33,23.776884]
[1735180650723,13.76463787,198.38,198.31,1.5838]
[1735180651043,13.76463787,198.36,198.31,1.5838]
[1735180651237,13.76463787,198.35,198.29,6.5309]
[1735180651542,13.76463787,198.33,198.29,6.5309]
[1735180651729,13.76463787,198.33,198.26,1.5838]
[1735180652538,13.76463787,198.33,198.27,23.776884]
[1735180653338,13.76463787,198.32,198.27,23.776884]
[1735180653530,13.76463787,198.32,198.26,1.5838]
[1735180655038,17.31003325,198.4,198.29,13.76463787]
[1735180655039,20.0,198.35,198.29,13.76463787]
[1735180655349,13.76463787,198.34,198.26,15.34843787]
[1735180655642,13.76463787,198.33,198.26,15.34843787]
[1735180655847,13.76463787,198.33,198.27,23.776884]
[1735180656026,33.76463787,198.35,198.28,13.76463787]
[1735180656425,13.76463787,198.36,198.29,23.776884]
[1735180656831,13.76463787,198.35,198.29,23.776884]
[1735180661049,13.76463787,198.36,198.29,23.776884]
[1735180661248,13.76463787,198.36,198.29,37.54152187]
[1735180663143,13.76463787,198.36,198.27,0.75627971]
[1735180663144,13.76463787,198.36,198.28,37.54152187]
[1735180663552,13.76463787,198.36,198.29,13.76463787]
[1735180663948,13.76463787,198.36,198.28,37.54152187]
[1735180664148,8.79842481,198.33,198.27,23.776884]
[1735180664953,8.79842481,198.32,198.26,1.5838]
[1735180666155,13.7526783,198.29,198.24,6.5309]
[1735180666356,13.7526783,198.26,198.21,1.6313]
[1735180667034,13.7526783,198.25,198.21,1.6313]
[1735180668252,13.7526783,198.23,198.17,6.0462]
[1735180668457,13.7526783,198.22,198.15,15.3839783]
[1735180668828,13.7526783,198.21,198.15,1.6313]
[1735180669030,13.7526783,198.2,198.15,1.6313]
[1735180669232,13.7526783,198.19,198.15,1.6313]
[1735180670056,13.7526783,198.2,198.15,1.6313]
[1735180670841,13.7526783,198.22,198.16,23.776884]
[1735180671156,13.7526783,198.24,198.17,13.7526783]
[1735180671453,29.90913392,198.3,198.18,37.5295623]
[1735180671755,13.7526783,198.26,198.2,23.776884]
[1735180672554,13.7526783,198.26,198.19,23.776884]
[1735180672762,13.7526783,198.25,198.19,23.776884]
[1735180673641,13.7526783,198.24,198.18,23.776884]
[1735180674749,13.7526783,198.26,198.19,0.12549]
[1735180675765,13.7526783,198.27,198.19,13.8781683]
[1735180676063,13.7526783,198.27,198.2,23.776884]
[1735180677136,13.7526783,198.27,198.19,13.7526783]
[1735180677342,13.7526783,198.25,198.17,13.7526783]
[1735180677563,13.7526783,198.25,198.18,23.776884]
[1735180678866,13.7526783,198.27,198.19,13.7526783]
[1735180679161,13.7526783,198.27,198.2,23.776884]
[1735180679464,13.7526783,198.27,198.2,13.7526783]
[1735180680387,13.7526783,198.3,198.23,37.5295623]
[1735180680560,13.7526783,198.29,198.21,44.60838907]
[1735180680769,13.7526783,198.28,198.21,30.099084]
[1735180688168,8.80293819,198.28,198.21,30.099084]
[1735180688862,20.0,198.3,198.21,30.8556732]
[1735180689068,8.80293819,198.32,198.25,23.776884]
[1735180689846,8.80293819,198.3,198.24,1.5404]
[1735180690047,8.80293819,198.28,198.24,1.5404]
[1735180690252,8.80293819,198.28,198.21,6.3222]
[1735180693663,8.80293819,198.28,198.22,23.776884]
[1735180693870,8.80293819,198.28,198.22,32.57982219]
[1735180694165,8.80293819,198.29,198.22,32.57982219]
[1735180696072,8.80293819,198.31,198.24,8.80293819]
[1735180696255,8.80293819,198.33,198.25,23.776884]
[1735180696586,8.80293819,198.33,198.25,32.57982219]
[1735180698486,8.80293819,198.31,198.24,23.776884]
[1735180699355,8.80293819,198.31,198.21,19.69106658]
[1735180699356,8.80293819,198.29,198.21,6.3222]
[1735180700592,8.80293819,198.29,198.22,32.57982219]
[1735180700789,8.80293819,198.31,198.24,23.776884]
[1735180701896,8.80293819,198.31,198.24,8.80293819]
[1735180702057,8.80293819,198.31,198.25,23.776884]
[1735180702261,12.6014,198.39,198.27,25.366284]
[1735180702561,8.80293819,198.35,198.29,23.776884]
[1735180703077,8.80293819,198.36,198.3,0.12549]
[1735180703274,6.84130536,198.45,198.3,0.12549]
[1735180703275,8.80293819,198.38,198.32,0.12549]
[1735180703480,8.80293819,198.38,198.31,32.57982219]
[1735180704203,13.74008111,198.38,198.31,37.51696511]
[1735180704568,13.74008111,198.36,198.3,23.776884]
[1735180704899,13.74008111,198.34,198.29,6.4682]
[1735180706360,13.74008111,198.35,198.29,6.4682]
[1735180706676,13.74008111,198.37,198.3,23.902374]
[1735180706983,13.74008111,198.4,198.33,23.776884]
[1735180707156,13.74008111,198.39,198.33,23.776884]
[1735180707568,13.74008111,198.38,198.32,23.776884]
[1735180708072,13.74008111,198.37,198.32,23.776884]
[1735180708687,13.74008111,198.37,198.3,0.12549]
[1735180708688,12.6,198.42,198.3,23.776884]
[1735180708876,13.74008111,198.36,198.3,23.776884]
[1735180709790,13.74008111,198.38,198.3,37.51696511]
[1735180709976,13.74008111,198.38,198.31,13.74008111]
[1735180710176,3.63567815,198.45,198.33,13.86557111]
[1735180710425,13.74008111,198.43,198.37,23.776884]
[1735180710976,13.74008111,198.44,198.37,37.51696511]
[1735180711380,13.74008111,198.41,198.36,2.34534365]
[1735180711567,0.12549,198.46,198.29,36.4682]
[1735180711568,13.74008111,198.37,198.32,23.776884]
[1735180711773,13.74008111,198.37,198.31,1.5894]
[1735180712917,13.74008111,198.33,198.29,6.4682]
[1735180713572,13.74008111,198.34,198.29,6.4682]
[1735180714596,13.74008111,198.36,198.29,20.20828111]
[1735180715104,13.74008111,198.36,198.3,23.776884]
[1735180715406,13.74008111,198.37,198.3,37.51696511]
[1735180715584,13.74008111,198.38,198.31,13.74008111]
[1735180715982,13.74008111,198.41,198.34,39.12446511]
[1735180716402,13.74008111,198.37,198.3,13.74008111]
[1735180716576,13.74008111,198.34,198.29,8.0757]
[1735180717714,13.74008111,198.35,198.29,8.0757]
[1735180718198,13.74008111,198.32,198.25,20.10878111]
[1735180718403,13.74008111,198.3,198.25,6.3687]
[1735180720007,13.74008111,198.31,198.25,6.3687]
[1735180720301,33.74008111,198.32,198.25,6.3687]
[1735180720494,33.74008111,198.32,198.25,20.10878111]
[1735180723503,33.74008111,198.32,198.25,6.3687]
[1735180723705,13.74008111,198.31,198.25,6.3687]
[1735180723887,13.74008111,198.3,198.25,6.3687]
[1735180724510,13.74008111,198.31,198.25,6.3687]
[1735180724803,33.74008111,198.32,198.25,6.3687]
[1735180725388,33.74008111,198.32,198.25,20.10878111]
[1735180726487,13.74008111,198.3,198.25,6.3687]
[1735180726689,13.74008111,198.29,198.25,6.3687]
[1735180727091,13.74008111,198.27,198.19,20.10878111]
[1735180727707,13.74008111,198.27,198.2,13.74008111]
[1735180727902,13.74008111,198.31,198.24,13.74008111]
[1735180728110,33.74008111,198.32,198.25,13.74008111]
[1735180728294,33.74008111,198.32,198.24,13.74008111]
[1735180729192,33.74008111,198.32,198.25,23.776884]
[1735180730390,20.0,198.32,198.25,23.776884]
[1735180730590,20.0,198.32,198.25,37.51696511]
[1735180733817,13.74008111,198.31,198.23,13.74008111]
[1735180734018,13.74008111,198.29,198.21,13.74008111]
[1735180734315,13.74008111,198.29,198.22,23.776884]
[1735180734496,13.74008111,198.25,198.19,6.3687]
[1735180737229,13.74008111,198.26,198.19,20.10878111]
[1735180739521,12.6077,198.3,198.2,13.74008111]
[1735180739719,13.74008111,198.29,198.22,13.74008111]
[1735180744128,13.74008111,198.29,198.21,13.74008111]
[1735180745127,13.74008111,198.29,198.22,13.74008111]
[1735180745827,13.74008111,198.29,198.21,13.74008111]
[1735180746133,13.74008111,198.29,198.22,23.776884]
[1735180747110,13.74008111,198.29,198.22,13.74008111]
[1735180748343,13.74008111,198.3,198.23,37.51696511]
[1735180750642,33.74008111,198.32,198.24,13.74008111]
[1735180750818,33.74008111,198.32,198.25,23.776884]
[1735180751318,13.74008111,198.31,198.25,23.776884]
[1735180751519,13.74008111,198.31,198.24,23.776884]
[1735180751944,13.74008111,198.3,198.24,23.776884]
[1735180752145,8.80064428,198.31,198.23,32.57752828]
[1735180753753,8.80064428,198.33,198.26,0.12549]
[1735180753932,8.80064428,198.37,198.29,32.57752828]
[1735180754133,8.80064428,198.38,198.31,23.776884]
[1735180754727,8.80064428,198.36,198.3,23.776884]
[1735180756129,8.80064428,198.38,198.31,8.80064428]
[1735180756333,0.10121578,198.42,198.33,8.92613428]
[1735180756536,8.90186006,198.42,198.36,23.776884]
[1735180756732,0.10121578,198.42,198.36,23.776884]
[1735180756937,8.90186006,198.42,198.36,23.776884]
[1735180757125,8.80064428,198.41,198.36,23.776884]
[1735180758028,8.90186006,198.42,198.36,23.776884]
[1735180758227,0.10121578,198.42,198.37,20.29198086]
[1735180758457,0.10121578,198.42,198.38,23.776884]
[1735180759837,0.10121578,198.42,198.38,37.51066486]
[1735180760349,0.10121578,198.42,198.38,23.776884]
[1735180762752,0.10121578,198.42,198.38,37.51066486]
[1735180762977,0.10121578,198.42,198.4,13.85927086]
[1735180763130,0.10121578,198.42,198.41,13.73378086]
[1735180763630,0.10121578,198.42,198.41,37.51066486]
[1735180765439,0.10121578,198.42,198.41,38.39193448]
[1735180765639,13.73378086,198.56,198.44,23.902374]
[1735180765854,13.73378086,198.56,198.48,13.73378086]
[1735180766157,13.73378086,198.56,198.49,23.776884]
[1735180766360,13.73378086,198.57,198.49,37.51066486]
[1735180767344,13.73378086,198.57,198.5,13.73378086]
[1735180767539,13.73378086,198.58,198.51,37.51066486]
[1735180768749,6.84130536,198.65,198.52,13.85927086]
[1735180769057,13.73378086,198.6,198.54,23.776884]
[1735180769635,13.73378086,198.64,198.56,13.73378086]
[1735180769835,13.73378086,198.67,198.6,13.73378086]
[1735180770056,13.73378086,198.68,198.6,13.73378086]
[1735180770360,13.73378086,198.67,198.6,13.73378086]
[1735180771039,13.73378086,198.71,198.63,13.73378086]
[1735180771245,13.73378086,198.74,198.67,13.73378086]
[1735180771755,13.73378086,198.74,198.68,23.776884]
[1735180771961,13.73378086,198.76,198.68,37.51066486]
[1735180772536,13.73378086,198.74,198.68,23.776884]
[1735180772736,13.73378086,198.77,198.69,13.73378086]
[1735180773157,13.73378086,198.77,198.7,30.563174]
[1735180773360,13.73378086,198.8,198.73,37.51066486]
[1735180773548,13.73378086,198.8,198.7,30.437684]
[1735180773549,13.73378086,198.77,198.7,6.6608]
[1735180773861,13.73378086,198.76,198.7,6.6608]
[1735180774048,13.73378086,198.77,198.7,6.6608]
[1735180774236,13.73378086,198.77,198.7,20.39458086]
[1735180774756,13.73378086,198.8,198.73,13.73378086]
[1735180775057,13.73378086,198.81,198.73,13.73378086]
[1735180775265,13.73378086,198.8,198.73,13.73378086]
[1735180775950,13.73378086,198.81,198.73,13.73378086]
[1735180776452,13.73378086,198.8,198.73,13.73378086]
[1735180776765,13.73378086,198.81,198.73,13.73378086]
[1735180777369,15.75733586,198.82,198.75,13.73378086]
[1735180777545,13.73378086,198.83,198.76,37.51066486]
[1735180777749,13.73378086,198.84,198.77,13.73378086]
[1735180777943,13.73378086,198.83,198.76,13.73378086]
[1735180778250,13.73378086,198.78,198.7,20.39458086]
[1735180778567,13.73378086,198.74,198.7,6.6608]
[1735180778757,12.5775,198.77,198.65,13.73378086]
[1735180778953,20.0,198.74,198.64,8.0727]
[1735180779267,13.73378086,198.68,198.64,8.0727]
[1735180779469,13.73378086,198.68,198.64,6.4863]
[1735180780164,13.73378086,198.66,198.59,8.0727]
[1735180780355,13.73378086,198.63,198.59,6.4863]
[1735180780548,13.73378086,198.62,198.59,6.4863]
[1735180780751,13.73378086,198.63,198.59,6.4863]
[1735180780945,13.73378086,198.63,198.55,13.73378086]
[1735180781165,13.73378086,198.61,198.54,15.32018086]
[1735180781464,13.73378086,198.61,198.54,1.5864]
[1735180781656,13.73378086,198.6,198.54,1.5864]
[1735180781971,13.73378086,198.59,198.54,1.5864]
[1735180782665,13.73378086,198.6,198.54,1.5864]
[1735180782965,13.73378086,198.61,198.54,2.3417446]
[1735180783156,13.73378086,198.59,198.53,6.4863]
[1735180783358,12.5845,198.66,198.53,6.4863]
[1735180783359,13.73378086,198.57,198.53,6.4863]
[1735180783758,13.73378086,198.58,198.53,6.4863]
[1735180784188,21.94216062,198.58,198.53,6.4863]
[1735180785077,21.94216062,198.54,198.45,21.94216062]
[1735180785250,21.94216062,198.52,198.44,21.94216062]
[1735180785452,21.94216062,198.52,198.45,21.94216062]
[1735180785870,21.94216062,198.53,198.46,21.94216062]
[1735180786571,21.94216062,198.52,198.46,23.776884]
[1735180786780,21.94216062,198.48,198.43,6.1137]
[1735180787093,21.94216062,198.47,198.39,21.94216062]
[1735180787775,21.94216062,198.47,198.4,21.94216062]
[1735180787951,12.5914,198.55,198.38,7.7499]
[1735180787952,21.94216062,198.48,198.41,21.94216062]
[1735180788147,21.94216062,198.49,198.42,21.94216062]
[1735180790074,21.94216062,198.46,198.39,21.94216062]
[1735180790260,21.94216062,198.45,198.38,29.69206062]
[1735180790462,21.94216062,198.45,198.38,6.1137]
[1735180790668,21.94216062,198.46,198.39,21.94216062]
[1735180791379,21.94216062,198.45,198.38,6.1137]
[1735180792056,21.94216062,198.46,198.38,28.05586062]
[1735180792574,21.94216062,198.46,198.39,21.94216062]
[1735180793852,21.94216062,198.46,198.38,6.1137]
[1735180794055,21.94216062,198.42,198.35,21.94216062]
[1735180794259,21.94216062,198.42,198.33,29.78956062]
[1735180794459,21.94216062,198.4,198.33,29.78956062]
[1735180795278,21.94216062,198.43,198.36,21.94216062]
[1735180795491,21.94216062,198.44,198.36,21.94216062]
[1735180795671,21.94216062,198.44,198.37,21.94216062]
[1735180796983,21.94216062,198.45,198.38,23.776884]
[1735180797187,21.94216062,198.46,198.38,45.71904462]
[1735180798190,21.94216062,198.46,198.39,21.94216062]
[1735180798992,41.94216062,198.47,198.39,21.94216062]
[1735180800591,41.94216062,198.47,198.36,21.94216062]
[1735180800592,21.94216062,198.43,198.36,21.94216062]
[1735180800772,21.94216062,198.43,198.37,23.776884]
[1735180801294,21.94216062,198.42,198.36,23.776884]
[1735180801488,21.94216062,198.43,198.36,21.94216062]
[1735180801793,21.94216062,198.45,198.37,45.71904462]
[1735180801967,21.94216062,198.45,198.38,0.12549]
[1735180802164,20.0,198.47,198.38,22.06765062]
[1735180802389,21.94216062,198.46,198.39,23.776884]
[1735180802779,21.94216062,198.43,198.38,23.776884]
[1735180802977,21.94216062,198.43,198.37,23.776884]
[1735180803174,21.94216062,198.43,198.35,22.69806471]
[1735180803387,21.94216062,198.43,198.36,23.902374]
[1735180803794,21.94216062,198.43,198.36,45.84453462]
[1735180804692,21.94216062,198.44,198.37,21.94216062]
[1735180804870,21.94216062,198.46,198.38,45.71904462]
[1735180805381,21.94216062,198.45,198.38,23.776884]
[1735180805899,21.94216062,198.46,198.39,21.94216062]
[1735180806082,21.94216062,198.46,198.4,23.776884]
[1735180806284,13.72968995,198.46,198.39,13.72968995]
[1735180806593,13.72968995,198.46,198.4,23.776884]
[1735180806766,13.72968995,198.47,198.4,23.776884]
[1735180806975,13.72968995,198.5,198.43,37.50657395]
[1735180807186,13.72968995,198.51,198.44,13.72968995]
[1735180809472,13.72968995,198.52,198.45,37.50657395]
[1735180809674,13.72968995,198.51,198.44,13.72968995]
[1735180809891,13.72968995,198.51,198.45,23.776884]
[1735180810395,13.72968995,198.51,198.44,23.776884]
[1735180810586,13.72968995,198.51,198.44,37.50657395]
[1735180810788,13.72968995,198.52,198.45,13.72968995]
[1735180811990,13.72968995,198.51,198.44,37.50657395]
[1735180812510,13.72968995,198.54,198.47,13.72968995]
[1735180813406,13.72968995,198.58,198.5,37.50657395]
[1735180813701,13.72968995,198.58,198.51,37.50657395]
[1735180813899,13.72968995,198.59,198.52,13.72968995]
[1735180814706,13.72968995,198.55,198.48,13.72968995]
[1735180815002,13.72968995,198.52,198.45,37.50657395]
[1735180815196,13.72968995,198.51,198.44,23.776884]
[1735180815597,13.72968995,198.51,198.43,21.68778995]
[1735180816312,13.72968995,198.51,198.44,13.72968995]
[1735180816510,12.5911,198.56,198.45,13.72968995]
[1735180816511,13.72968995,198.52,198.45,13.72968995]
[1735180816681,13.72968995,198.53,198.45,13.72968995]
[1735180817182,13.72968995,198.52,198.46,23.776884]
[1735180819200,13.72968995,198.52,198.43,7.9581]
[1735180819403,13.72968995,198.47,198.39,13.72968995]
[1735180819596,13.72968995,198.45,198.38,21.68778995]
[1735180819802,13.72968995,198.44,198.38,7.9581]
[1735180821504,26.32458995,198.5,198.38,7.9581]
[1735180821505,13.72968995,198.43,198.38,7.9581]
[1735180821906,13.72968995,198.44,198.38,7.9581]
[1735180822219,26.32458995,198.5,198.33,0.75597214]
[1735180822220,13.72968995,198.39,198.33,7.716]
[1735180822715,6.4492,198.49,198.33,7.716]
[1735180822716,20.0,198.44,198.34,30.75616989]
[1735180822921,20.0,198.44,198.36,13.72968995]
[1735180822922,13.72968995,198.43,198.36,13.72968995]
[1735180823100,13.72968995,198.42,198.34,13.72968995]
[1735180823506,13.72968995,198.42,198.35,13.72968995]
[1735180823697,13.72968995,198.43,198.36,13.72968995]
[1735180823994,13.72968995,198.44,198.36,13.72968995]
[1735180824209,20.0,198.46,198.34,0.12549]
[1735180824210,13.72968995,198.45,198.37,13.72968995]
[1735180824620,13.72968995,198.45,198.38,23.776884]
[1735180826608,13.72968995,198.47,198.4,13.72968995]
[1735180826800,13.72968995,198.48,198.41,37.50657395]
[1735180827005,13.72968995,198.49,198.41,37.50657395]
[1735180827391,13.72968995,198.48,198.41,37.50657395]
[1735180828587,13.72968995,198.48,198.41,38.26229676]
[1735180828811,13.72968995,198.5,198.41,38.26229676]
[1735180829212,13.72968995,198.5,198.42,7.716]
[1735180829515,13.72968995,198.5,198.43,37.63206395]
[1735180829822,13.72968995,198.53,198.45,23.776884]
[1735180832612,13.72968995,198.53,198.47,0.12549]
[1735180832810,13.72968995,198.55,198.48,13.72968995]
[1735180833188,13.72968995,198.55,198.49,23.776884]
[1735180833395,1.6056,198.63,198.53,23.776884]
[1735180833598,13.72968995,198.61,198.53,37.50657395]
[1735180833797,13.72968995,198.6,198.53,23.776884]
[1735180834909,13.72968995,198.6,198.53,37.50657395]
[1735180835214,13.72968995,198.61,198.53,37.50657395]
[1735180835398,13.72968995,198.61,198.54,0.12549]
[1735180835714,13.72968995,198.61,198.55,23.776884]
[1735180835908,13.72968995,198.63,198.56,13.85517995]
[1735180836215,13.72968995,198.65,198.57,37.50657395]
[1735180836513,13.72968995,198.64,198.57,23.776884]
[1735180837509,13.72968995,198.65,198.58,13.72968995]
[1735180837714,13.72968995,198.66,198.59,23.776884]
[1735180838717,13.72968995,198.66,198.59,37.50657395]
[1735180839418,13.72968995,198.66,198.59,23.776884]
[1735180844232,13.72968995,198.68,198.61,37.50657395]
[1735180844535,13.72968995,198.67,198.6,8.0271]
[1735180844819,13.72968995,198.62,198.56,23.776884]
[1735180845420,12.5798,198.73,198.57,13.85517995]
[1735180845711,13.72968995,198.68,198.6,13.72968995]
[1735180847119,13.72968995,198.68,198.61,24.53195484]
[1735180848814,13.72968995,198.7,198.62,13.85517995]
[1735180848995,13.72968995,198.7,198.63,23.776884]
[1735180849414,13.72968995,198.69,198.63,23.776884]
[1735180849717,13.72968995,198.71,198.63,38.26153956]
[1735180849920,13.72968995,198.71,198.65,23.776884]
[1735180855524,13.72968995,198.71,198.64,21.75678995]
[1735180855718,13.72968995,198.71,198.64,8.0271]
[1735180855923,13.72968995,198.69,198.6,13.72968995]
[1735180856121,13.72968995,198.67,198.6,13.72968995]
[1735180856330,13.72968995,198.65,198.59,7.8486]
[1735180856623,13.72968995,198.62,198.56,13.72968995]
[1735180856929,13.72968995,198.61,198.55,1.5704]
[1735180858118,13.72968995,198.61,198.56,23.776884]
[1735180858711,13.72968995,198.62,198.56,23.776884]
[1735180859124,22.03138995,198.7,198.56,23.776884]
[1735180859125,20.0,198.67,198.57,13.72968995]
[1735180859420,20.0,198.67,198.58,23.776884]
[1735180859421,13.72968995,198.65,198.58,23.776884]
[1735180861904,13.72968995,198.67,198.6,23.776884]
[1735180862104,13.72968995,198.69,198.62,23.776884]
[1735180863634,13.72968995,198.69,198.63,13.72968995]
[1735180864130,13.72968995,198.69,198.64,23.776884]
[1735180864507,13.72968995,198.71,198.64,23.776884]
[1735180864932,13.72968995,198.71,198.63,21.57828995]
[1735180865117,12.5779,198.77,198.63,7.8486]
[1735180865118,13.72968995,198.69,198.63,7.8486]
[1735180866235,13.72968995,198.71,198.64,23.776884]
[1735180866610,13.72968995,198.73,198.68,23.776884]
[1735180866832,13.72968995,198.74,198.68,23.776884]
[1735180867026,13.72968995,198.74,198.66,13.72968995]
[1735180867210,13.72968995,198.74,198.67,23.776884]
[1735180869527,13.72968995,198.74,198.66,13.72968995]
[1735180870246,13.72968995,198.74,198.67,23.776884]
[1735180871339,13.72968995,198.71,198.66,23.776884]
[1735180873645,13.72968995,198.75,198.67,13.85517995]
[1735180873943,13.72968995,198.76,198.69,13.72968995]
[1735180874251,13.72968995,198.76,198.7,23.776884]
[1735180875718,33.72968995,198.77,198.7,23.776884]
[1735180876146,13.72968995,198.76,198.7,23.776884]
[1735180876315,13.72968995,198.73,198.65,13.72968995]
[1735180876515,13.72968995,198.71,198.64,13.72968995]
[1735180876722,13.72968995,198.71,198.63,21.57828995]
[1735180877125,13.72968995,198.71,198.64,13.72968995]
[1735180877435,33.72968995,198.73,198.65,13.72968995]
[1735180877636,33.72968995,198.73,198.66,13.72968995]
[1735180877937,33.72968995,198.73,198.65,37.63206395]